fUSD/lending_fUSD_20260108
["ID","MTS","AMOUNT","RATE_DAILY","PERIOD"]
[400831738,1767840641777,-2000.0,0.00016406,2]
[400831740,1767840641786,-2000.0,0.00016406,2]
[400831742,1767840641796,-2003.11520818,0.00016406,2]
[400831744,1767840641805,-2000.0,0.00016406,2]
[400831746,1767840641815,-300.0,0.00016412,2]
[400831748,1767840641826,-1500.0,0.00016415,2]
[400831750,1767840641835,-556.62769359,0.00016438,2]
[400831752,1767840641844,-556.62769359,0.00016438,2]
[400831754,1767840641853,-556.62769359,0.00016438,2]
[400831756,1767840641863,-556.62769359,0.00016438,2]
[400831758,1767840641872,-556.62769359,0.00016438,2]
[400831760,1767840641881,-556.62769359,0.00016438,2]
[400831762,1767840641890,-556.62769359,0.00016438,2]
[400831764,1767840641900,-556.62769359,0.00016438,2]
[400831766,1767840641909,-556.62769359,0.00016438,2]
[400831768,1767840641919,-556.62769359,0.00016438,2]
[400831770,1767840641928,-556.62769359,0.00016438,2]
[400831772,1767840641937,-556.62769359,0.00016438,2]
[400831774,1767840641947,-556.62769359,0.00016438,2]
[400831776,1767840641956,-556.62769359,0.00016438,2]
[400831777,1767840641965,-556.62769359,0.00016438,2]
[400831778,1767840641975,-556.62769359,0.00016438,2]
[400831779,1767840641985,-556.62769359,0.00016438,2]
[400831780,1767840641995,-556.62769359,0.00016438,2]
[400831781,1767840642006,-556.62769359,0.00016438,2]
[400831782,1767840642015,-556.62769359,0.00016438,2]
[400831783,1767840642027,-556.62769359,0.00016438,2]
[400831784,1767840642040,-556.62769359,0.00016438,2]
[400831785,1767840642049,-556.62769359,0.00016438,2]
[400831786,1767840642059,-556.62769359,0.00016438,2]
[400831787,1767840642067,-556.62769359,0.00016438,2]
[400831788,1767840642076,-556.62769359,0.00016438,2]
[400831789,1767840642085,-556.62769359,0.00016438,2]
[400831790,1767840642094,-556.62769359,0.00016438,2]
[400831791,1767840642103,-556.62769359,0.00016438,2]
[400831792,1767840642112,-556.62769359,0.00016438,2]
[400831794,1767840642122,-556.62769359,0.00016438,2]
[400831796,1767840642132,-556.62769359,0.00016438,2]
[400831799,1767840642146,-556.62769359,0.00016438,2]
[400831801,1767840642156,-556.62769359,0.00016438,2]
[400831803,1767840642165,-556.62769359,0.00016438,2]
[400831805,1767840642175,-556.62769359,0.00016438,2]
[400831807,1767840642184,-556.62769359,0.00016438,2]
[400831809,1767840642194,-556.62769359,0.00016438,2]
[400831810,1767840642203,-556.62769359,0.00016438,2]
[400831812,1767840642214,-556.62769359,0.00016438,2]
[400831814,1767840642224,-556.62769359,0.00016438,2]
[400831816,1767840642233,-556.62769359,0.00016438,2]
[400831819,1767840642244,-556.62769359,0.00016438,2]
[400831821,1767840642254,-556.62769359,0.00016438,2]
[400831822,1767840642263,-556.62769359,0.00016438,2]
[400831825,1767840642273,-556.62769359,0.00016438,2]
[400831826,1767840642282,-556.62769359,0.00016438,2]
[400831828,1767840642292,-556.62769359,0.00016438,2]
[400831830,1767840642301,-556.62769359,0.00016438,2]
[400831833,1767840642310,-556.62769359,0.00016438,2]
[400831834,1767840642320,-556.62769359,0.00016438,2]
[400831836,1767840642329,-556.62769359,0.00016438,2]
[400831839,1767840642342,-556.62769359,0.00016438,2]
[400831841,1767840642352,-556.62769359,0.00016438,2]
[400831843,1767840642362,-556.62769359,0.00016438,2]
[400831845,1767840642371,-556.62769359,0.00016438,2]
[400831847,1767840642381,-556.62769359,0.00016438,2]
[400831849,1767840642391,-556.62769359,0.00016438,2]
[400831851,1767840642401,-556.62769359,0.00016438,2]
[400831853,1767840642410,-19419.51,0.00016438,2]
[400831855,1767840642420,-1991.08,0.00016438,2]
[400831857,1767840642430,-800.0,0.00016438,2]
[400831859,1767840642439,-1480.81,0.00016444,2]
[400831861,1767840642449,-780.10784788,0.00016445,2]
[400831863,1767840642460,-150.0,0.00016448,2]
[400831865,1767840642469,-300.0,0.00016468,2]
[400831867,1767840642479,-300.0,0.00016474,2]
[400831869,1767840642488,-500.0,0.00016495,2]
[400831871,1767840642497,-500.0,0.00016495,2]
[400831874,1767840642507,-150.0,0.0001651,2]
[400831875,1767840642516,-1000.0,0.00016515,2]
[400831878,1767840642527,-300.0,0.00016564,2]
[400831880,1767840642539,-150.0,0.00016572,2]
[400831882,1767840642550,-165.15,0.00016588,2]
[400831884,1767840642559,-300.0,0.00016588,2]
[400831886,1767840642568,-1000.0,0.00016589,2]
[400831888,1767840642578,-300.0,0.00016599,2]
[400831890,1767840642587,-150.0,0.00016634,2]
[400831892,1767840642597,-157.19112422,0.00016652,2]
[400831894,1767840642606,-300.0,0.00016673,2]
[400831896,1767840642616,-617.40005154,0.00016685,2]
[400831898,1767840642625,-787.62614361,0.00016687,2]
[400831900,1767840642638,-150.0,0.00016697,2]
[400831902,1767840642648,-300.0,0.00016699,2]
[400831904,1767840642657,-165.16,0.00016712,2]
[400831907,1767840642667,-2000.0,0.00016716,2]
[400831909,1767840642677,-1480.81,0.00016718,2]
[400831911,1767840642687,-833.0,0.0001672,2]
[400831913,1767840642696,-162.0,0.0001672,2]
[400831915,1767840642706,-833.0,0.0001672,2]
[400831917,1767840642716,-833.0,0.0001672,2]
[400831919,1767840642726,-300.0,0.00016755,2]
[400831921,1767840642735,-150.0,0.00016759,2]
[400831923,1767840642747,-426.37,0.00016763,2]
[400831925,1767840642757,-300.0,0.00016775,2]
[400831927,1767840642767,-300.0,0.00016804,2]
[400831929,1767840642776,-150.0,0.00016818,2]
[400831931,1767840642785,-150.0,0.00016821,2]
[400831933,1767840642795,-300.0,0.00016833,2]
[400831935,1767840642804,-300.0,0.00016833,2]
[400831937,1767840642814,-4444.0,0.00016863,2]
[400831939,1767840642823,-13455.58174537,0.00016875,2]
[400831941,1767840642833,-150.0,0.00016883,2]
[400831943,1767840642843,-15397.59861671,0.00016898,2]
[400831946,1767840642852,-300.0,0.00016943,2]
[400831948,1767840642862,-150.0,0.00016945,2]
[400831950,1767840642871,-1008.40531159,0.00016954,2]
[400831952,1767840642881,-2500.0,0.00016954,2]
[400831954,1767840642890,-181.44262662,0.00016954,2]
[400831956,1767840642900,-874.30420202,0.00016954,2]
[400831958,1767840642909,-502.28599053,0.00016954,2]
[400831960,1767840642919,-2500.0,0.00016954,2]
[400831962,1767840642929,-300.0,0.00016958,2]
[400831965,1767840642941,-300.0,0.00016958,2]
[400831967,1767840642950,-334.5472959,0.00016958,2]
[400831969,1767840642961,-642.94,0.00016958,2]
[400831971,1767840642970,-503.0,0.00016959,2]
[400831973,1767840642979,-150.0,0.0001697,2]
[400831975,1767840642989,-300.0,0.00016971,2]
[400831977,1767840642999,-1000.0,0.00016975,2]
[400831979,1767840643009,-300.0,0.00016979,2]
[400831981,1767840643019,-50623.16,0.00016986,2]
[400831983,1767840643028,-304.30680198,0.00016987,2]
[400831985,1767840643037,-1480.81,0.00016992,2]
[400831987,1767840643047,-367.01,0.00016994,2]
[400831989,1767840643057,-250.0,0.00017,2]
[400831991,1767840643066,-150.0,0.00017007,2]
[400831993,1767840643075,-1000.0,0.00017007,2]
[400831995,1767840643085,-1000.0,0.00017012,2]
[400831997,1767840643095,-300.0,0.00017016,2]
[400831999,1767840643104,-300.0,0.00017024,2]
[400832001,1767840643113,-165.15,0.00017028,2]
[400832003,1767840643123,-162.0,0.0001704,2]
[400832005,1767840643134,-162.0,0.0001704,2]
[400832007,1767840643144,-736.0,0.00017054,2]
[400832009,1767840643153,-300.0,0.00017063,2]
[400832011,1767840643163,-1000.0,0.00017064,2]
[400832013,1767840643173,-150.0,0.00017069,2]
[400832015,1767840643183,-300.0,0.00017086,2]
[400832017,1767840643193,-4444.0,0.00017094,2]
[400832019,1767840643202,-20452.74518303,0.000171,2]
[400832021,1767840643213,-1000.0,0.00017112,2]
[400832023,1767840643223,-150.0,0.00017131,2]
[400832025,1767840643232,-212.37385639,0.00017134,2]
[400832027,1767840643242,-300.0,0.00017143,2]
[400832029,1767840643251,-300.0,0.00017156,2]
[400832031,1767840643261,-1000.0,0.00017165,2]
[400832033,1767840643271,-300.0,0.00017165,2]
[400832035,1767840643280,-780.10784788,0.00017173,2]
[400832037,1767840643289,-300.0,0.00017178,2]
[400832039,1767840643299,-150.0,0.00017185,2]
[400832041,1767840643308,-150.0,0.00017193,2]
[400832044,1767840643317,-281.0,0.00017197,2]
[400832047,1767840643338,-300.0,0.00017199,2]
[400832049,1767840643348,-300.0,0.00017202,2]
[400832051,1767840643358,-150.0,0.00017216,2]
[400832053,1767840643368,-1000.0,0.0001723,2]
[400832055,1767840643377,-640.24385345,0.00017233,2]
[400832057,1767840643387,-3769.0,0.00017233,2]
[400832059,1767840643398,-157.19112422,0.00017247,2]
[400832061,1767840643407,-150.0,0.00017255,2]
[400832063,1767840643417,-4444.0,0.00017257,2]
[400832065,1767840643427,-833.4,0.00017259,2]
[400832067,1767840643437,-150.0,0.00017262,2]
[400832069,1767840643447,-2500.0,0.00017264,2]
[400832071,1767840643456,-1480.81,0.00017265,2]
[400832073,1767840643466,-300.0,0.00017274,2]
[400832075,1767840643475,-300.0,0.00017276,2]
[400832078,1767840643486,-300.0,0.00017282,2]
[400832080,1767840643496,-150.0,0.00017317,2]
[400832082,1767840643505,-300.0,0.00017319,2]
[400832084,1767840643515,-300.0,0.00017321,2]
[400832086,1767840643526,-300.0,0.00017321,2]
[400832088,1767840643535,-833.4,0.00017326,2]
[400832090,1767840643545,-1000.0,0.0001733,2]
[400832092,1767840643554,-300.0,0.00017331,2]
[400832094,1767840643564,-1000.0,0.0001734,2]
[400832096,1767840643574,-1272.25514626,0.00017353,2]
[400832098,1767840643583,-1690.23374302,0.00017354,2]
[400832100,1767840643592,-162.0,0.0001736,2]
[400832102,1767840643602,-162.0,0.0001736,2]
[400832104,1767840643611,-162.0,0.0001736,2]
[400832106,1767840643621,-1000.0,0.00017378,2]
[400832108,1767840643630,-150.0,0.00017379,2]
[400832110,1767840643640,-13455.58174537,0.00017388,2]
[400832112,1767840643649,-833.4,0.00017394,2]
[400832114,1767840643658,-15397.59861671,0.00017399,2]
[400832116,1767840643668,-1000.0,0.000174,2]
[400832118,1767840643677,-281.0,0.00017404,2]
[400832120,1767840643687,-300.0,0.00017421,2]
[400832122,1767840643697,-300.0,0.00017426,2]
[400832124,1767840643705,-150.0,0.00017427,2]
[400832126,1767840643715,-1000.0,0.00017429,2]
[400832128,1767840643726,-1000.0,0.00017436,2]
[400832130,1767840643736,-367.01,0.00017441,2]
[400832132,1767840643745,-150.0,0.00017441,2]
[400832134,1767840643755,-300.0,0.00017447,2]
[400832136,1767840643764,-300.0,0.00017459,2]
[400832138,1767840643774,-150.0,0.0001746,2]
[400832140,1767840643783,-833.4,0.00017461,2]
[400832142,1767840643794,-197.20922502,0.00017468,2]
[400832145,1767840643804,-150.0,0.00017468,2]
[400832147,1767840643814,-300.0,0.00017475,2]
[400832149,1767840643823,-300.0,0.00017477,2]
[400832151,1767840643832,-300.0,0.0001748,2]
[400832153,1767840643842,-300.0,0.00017484,2]
[400832155,1767840643851,-300.0,0.00017484,2]
[400832157,1767840643861,-300.0,0.00017486,2]
[400832159,1767840643871,-281.0,0.00017487,2]
[400832161,1767840643881,-300.0,0.00017489,2]
[400832163,1767840643890,-300.0,0.00017498,2]
[400832165,1767840643901,-1000.0,0.00017502,2]
[400832167,1767840643910,-3000.0,0.00017502,2]
[400832169,1767840643920,-3000.0,0.00017502,2]
[400832171,1767840643930,-150.0,0.00017503,2]
[400832173,1767840643939,-300.0,0.00017514,2]
[400832175,1767840643949,-300.0,0.00017517,2]
[400832177,1767840643959,-285.16,0.00017517,2]
[400832179,1767840643968,-833.4,0.00017528,2]
[400832181,1767840643977,-220.21,0.00017529,2]
[400832183,1767840643987,-1000.0,0.00017533,2]
[400832185,1767840643996,-241.73307518,0.00017534,2]
[400832187,1767840644005,-150.0,0.00017536,2]
[400832189,1767840644015,-1480.88859706,0.00017539,2]
[400832191,1767840644027,-281.0,0.00017546,2]
[400832193,1767840644037,-1000.0,0.00017547,2]
[400832195,1767840644046,-150.0,0.00017566,2]
[400832198,1767840644058,-823.0,0.00017572,2]
[400832200,1767840644068,-823.0,0.00017572,2]
[400832202,1767840644078,-300.0,0.0001758,2]
[400832204,1767840644088,-1000.0,0.00017589,2]
[400832206,1767840644099,-150.0,0.00017594,2]
[400832208,1767840644109,-3769.0,0.00017596,2]
[400832210,1767840644120,-833.4,0.00017596,2]
[400832212,1767840644130,-1000.0,0.000176,2]
[400832214,1767840644142,-215.76,0.00017606,2]
[400832216,1767840644152,-4014.118,0.00017606,2]
[400832218,1767840644162,-300.0,0.00017606,2]
[400832220,1767840644172,-250.0,0.00017624,2]
[400832223,1767840644181,-150.0,0.00017628,2]
[400832254,1767840644511,-281.0,0.00017631,2]
[400832256,1767840644521,-300.0,0.00017636,2]
[400832258,1767840644531,-5309.74765664,0.0001764,2]
[400832260,1767840644541,-285.15739,0.00017645,2]
[400832262,1767840644550,-150.0,0.0001765,2]
[400832264,1767840644559,-3769.0,0.00017656,2]
[400832266,1767840644568,-833.4,0.00017663,2]
[400832268,1767840644578,-1000.0,0.00017672,2]
[400832270,1767840644587,-833.0,0.0001768,2]
[400832272,1767840644597,-833.0,0.0001768,2]
[400832274,1767840644607,-833.0,0.0001768,2]
[400832276,1767840644616,-1000.0,0.00017681,2]
[400832278,1767840644625,-281.0,0.00017687,2]
[400832280,1767840644634,-150.0,0.0001769,2]
[400832282,1767840644643,-281.0,0.00017692,2]
[400832285,1767840644653,-300.0,0.00017693,2]
[400832287,1767840644662,-300.0,0.00017699,2]
[400832289,1767840644672,-300.0,0.00017699,2]
[400832291,1767840644681,-300.0,0.00017703,2]
[400832292,1767840644690,-150.0,0.00017707,2]
[400832294,1767840644699,-1000.0,0.00017709,2]
[400832297,1767840644709,-300.0,0.00017709,2]
[400832299,1767840644719,-300.0,0.00017711,2]
[400832301,1767840644728,-500.0,0.00017714,2]
[400832303,1767840644737,-363.73176274,0.00017714,2]
[400832305,1767840644746,-300.0,0.00017714,2]
[400832307,1767840644756,-833.4,0.00017731,2]
[400832309,1767840644766,-150.0,0.00017746,2]
[400832311,1767840644775,-3292.0,0.00017751,2]
[400832313,1767840644784,-150.0,0.00017752,2]
[400832315,1767840644793,-300.0,0.00017763,2]
[400832317,1767840644803,-168.51620742,0.00017765,2]
[400832319,1767840644812,-338.00886573,0.00017776,2]
[400832321,1767840644821,-300.0,0.00017776,2]
[400832323,1767840644830,-281.0,0.00017778,2]
[400832325,1767840644839,-663.93287602,0.00017781,2]
[400832327,1767840644848,-25000.0,0.00017786,3]
[400832329,1767840644858,-150.0,0.00017788,2]
[400832331,1767840644868,-281.0,0.00017791,2]
[400832333,1767840644878,-25000.0,0.00017794,3]
[400832335,1767840644887,-300.0,0.00017795,2]
[400832337,1767840644897,-833.4,0.00017798,2]
[400832339,1767840644906,-300.0,0.00017798,2]
[400832341,1767840644916,-168.51620742,0.00017799,2]
[400832343,1767840644925,-25000.0,0.00017803,3]
[400832345,1767840644936,-281.0,0.00017811,2]
[400832347,1767840644945,-25000.0,0.00017812,3]
[400832349,1767840644954,-1508.63308647,0.00017812,2]
[400832351,1767840644964,-150.0,0.00017814,2]
[400832353,1767840644974,-212.37385639,0.00017818,2]
[400832355,1767840644984,-7663.47995,0.0001782,2]
[400832357,1767840644993,-7663.47995,0.0001782,2]
[400832359,1767840645003,-25000.0,0.00017821,3]
[400832361,1767840645012,-300.0,0.00017824,2]
[400832363,1767840645022,-25000.0,0.0001783,3]
[400832365,1767840645031,-298.06900978,0.0001783,2]
[400832367,1767840645041,-7663.47995,0.0001783,2]
[400832369,1767840645051,-168.51620742,0.00017833,2]
[400832371,1767840645061,-25000.0,0.00017838,3]
[400832373,1767840645071,-300.0,0.00017841,2]
[400832376,1767840645081,-157.19112422,0.00017842,2]
[400832378,1767840645091,-25000.0,0.00017847,3]
[400832380,1767840645100,-300.0,0.00017854,2]
[400832382,1767840645110,-200.0,0.00017855,2]
[400832384,1767840645119,-200.0,0.00017856,2]
[400832386,1767840645128,-200.0,0.00017856,2]
[400832388,1767840645142,-200.0,0.00017856,2]
[400832390,1767840645151,-25000.0,0.00017856,3]
[400832392,1767840645160,-7663.47995,0.0001786,2]
[400832394,1767840645171,-25000.0,0.00017865,3]
[400832396,1767840645183,-833.4,0.00017865,2]
[400832398,1767840645193,-168.51620742,0.00017866,2]
[400832400,1767840645203,-177.4888516,0.00017873,3]
[400832402,1767840645215,-25000.0,0.00017874,3]
[400832405,1767840645224,-150.0,0.00017876,2]
[400832407,1767840645234,-151.0,0.00017879,2]
[400832409,1767840645244,-7663.47995,0.0001788,2]
[400832411,1767840645253,-25000.0,0.00017882,3]
[400832413,1767840645263,-1000.0,0.00017886,2]
[400832415,1767840645273,-25000.0,0.00017891,3]
[400832417,1767840645282,-300.0,0.00017898,2]
[400832419,1767840645292,-244.67,0.00017899,2]
[400832421,1767840645301,-1055.90320998,0.000179,3]
[400832423,1767840645311,-780.10784788,0.000179,2]
[400832425,1767840645320,-10000.0,0.000179,2]
[400832427,1767840645330,-1913.09467778,0.000179,2]
[400832429,1767840645341,-25000.0,0.000179,3]
[400832431,1767840645350,-923.06403135,0.000179,2]
[400832433,1767840645360,-15397.59861671,0.000179,2]
[400832435,1767840645370,-846.37819096,0.000179,2]
[400832437,1767840645380,-168.51620742,0.000179,2]
[400832439,1767840645389,-12102.0,0.000179,2]
[400832441,1767840645399,-244.67,0.0001791,2]
[400832443,1767840645408,-7663.47996,0.0001791,2]
[400832445,1767840645418,-244.67,0.00017922,2]
[400832448,1767840645428,-3769.0,0.00017924,2]
[400832450,1767840645438,-230.00602329,0.00017924,2]
[400832452,1767840645447,-150.0,0.00017929,2]
[400832454,1767840645457,-833.4,0.00017933,2]
[400832456,1767840645466,-150.0,0.00017938,2]
[400832458,1767840645476,-1000.0,0.00017955,2]
[400832460,1767840645485,-500.0,0.0001797,2]
[400832462,1767840645494,-1000.0,0.0001797,2]
[400832464,1767840645503,-500.0,0.0001797,2]
[400832466,1767840645513,-1000.0,0.0001797,2]
[400832468,1767840645522,-500.0,0.0001797,2]
[400832470,1767840645531,-1000.0,0.0001797,2]
[400832472,1767840645541,-500.0,0.0001797,2]
[400832474,1767840645550,-1000.0,0.0001797,2]
[400832476,1767840645560,-984.41347442,0.0001797,2]
[400832478,1767840645569,-1000.0,0.0001797,2]
[400832480,1767840645579,-1000.0,0.0001797,2]
[400832482,1767840645588,-1000.0,0.0001797,2]
[400832484,1767840645598,-1000.0,0.0001797,2]
[400832486,1767840645607,-1000.0,0.0001797,2]
[400832488,1767840645617,-1246.54474908,0.0001797,2]
[400832490,1767840645626,-163.7104368,0.00017971,2]
[400832492,1767840645636,-156.0,0.00017973,2]
[400832494,1767840645645,-338.62982115,0.00017973,2]
[400832496,1767840645655,-501.18870733,0.00017973,2]
[400832498,1767840645664,-500.0,0.00017973,2]
[400832500,1767840645673,-500.0,0.00017973,2]
[400832502,1767840645683,-633.01352033,0.00017973,2]
[400832504,1767840645692,-500.0,0.00017973,2]
[400832506,1767840645701,-150.0,0.00017973,2]
[400832508,1767840645711,-5888.0,0.00017973,2]
[400832510,1767840645719,-558.19,0.00017976,2]
[400832512,1767840645729,-500.0,0.00017982,2]
[400832514,1767840645738,-300.0,0.00017985,2]
[400832516,1767840645748,-300.0,0.00017985,2]
[400832518,1767840645760,-251.0,0.00017987,2]
[400832521,1767840645770,-150.0,0.00017989,2]
[400832523,1767840645780,-300.0,0.0001799,2]
[400832525,1767840645790,-1186.44134713,0.0001799,2]
[400832527,1767840645800,-1186.44134713,0.0001799,2]
[400832529,1767840645810,-151.0,0.00017997,2]
[400832531,1767840645819,-300.0,0.00017998,2]
[400832533,1767840645828,-177.65368226,0.00017999,2]
[400832535,1767840645838,-2755.93468828,0.00017999,2]
[400832537,1767840645848,-300.0,0.00017999,2]
[400832539,1767840645857,-1106.18518596,0.00017999,2]
[400832541,1767840645866,-1007.46441124,0.00017999,2]
[400832543,1767840645876,-300.0,0.00017999,2]
[400832545,1767840645885,-300.0,0.00017999,2]
[400832547,1767840645895,-300.0,0.00017999,2]
[400832549,1767840645905,-666.0,0.00017999,2]
[400832551,1767840645915,-300.0,0.00017999,2]
[400832553,1767840645924,-666.0,0.00017999,2]
[400832556,1767840645934,-300.0,0.00017999,2]
[400832557,1767840645944,-5970.77362135,0.00017999,2]
[400832560,1767840645954,-154.67877044,0.00018,2]
[400832562,1767840645963,-330929.55527379,0.00018,2]
[400832564,1767840645974,-581080.15763481,0.00018,2]
[400832646,1767840646774,-2115142.89848047,0.00018,2]
[400832648,1767840646783,-512.89819875,0.00018,2]
[400832649,1767840646793,-512.89819875,0.00018,2]
[400832651,1767840646802,-512.89819875,0.00018,2]
[400832653,1767840646811,-512.89819875,0.00018,2]
[400832655,1767840646820,-512.89819875,0.00018,2]
[400832657,1767840646829,-512.89819875,0.00018,2]
[400832659,1767840646838,-512.89819875,0.00018,2]
[400832661,1767840646847,-512.89819875,0.00018,2]
[400832663,1767840646856,-512.89819875,0.00018,2]
[400832665,1767840646866,-512.89819874,0.00018,2]
[400832667,1767840646874,-512.89819874,0.00018,2]
[400832669,1767840646883,-512.89819874,0.00018,2]
[400832671,1767840646894,-512.89819874,0.00018,2]
[400832673,1767840646903,-512.89819874,0.00018,2]
[400832675,1767840646912,-512.89819874,0.00018,2]
[400832677,1767840646921,-512.89819874,0.00018,2]
[400832679,1767840646930,-512.89819874,0.00018,2]
[400832681,1767840646940,-512.89819874,0.00018,2]
[400832683,1767840646949,-512.89819874,0.00018,2]
[400832685,1767840646958,-512.89819874,0.00018,2]
[400832687,1767840646968,-215.166,0.00018,2]
[400832689,1767840646977,-250.0,0.00018,2]
[400832691,1767840646986,-226.419,0.00018,2]
[400832693,1767840646995,-210.242,0.00018,2]
[400832695,1767840647004,-157.369,0.00018,2]
[400832697,1767840647013,-250.0,0.00018,2]
[400832699,1767840647022,-297.977,0.00018,2]
[400832701,1767840647031,-190.919,0.00018,2]
[400832703,1767840647039,-163.809,0.00018,2]
[400832705,1767840647048,-150.0,0.00018,2]
[400832707,1767840647057,-2612.07118707,0.00018,2]
[400832709,1767840647066,-211.956,0.00018,2]
[400832711,1767840647075,-250.0,0.00018,2]
[400832713,1767840647085,-150.0,0.00018,2]
[400832714,1767840647094,-168.0,0.00018,2]
[400832716,1767840647104,-3198.7982358,0.00018,2]
[400832719,1767840647114,-228.51,0.00018,2]
[400832720,1767840647123,-150.0,0.00018,2]
[400832723,1767840647133,-10567.5440269,0.00018,2]
[400832724,1767840647147,-150.0,0.00018,2]
[400832726,1767840647156,-1518.74663393,0.00018,2]
[400832728,1767840647166,-151.0,0.00018,2]
[400832730,1767840647176,-151.0,0.00018,2]
[400832733,1767840647187,-3902062.41233384,0.00018,2]
[400832736,1767840647209,-4030.00360946,0.00018,2]
[400832738,1767840647220,-4380.1412729,0.00018,2]
[400832740,1767840647231,-1234.64498266,0.00018,2]
[400832742,1767840647242,-10512.38930022,0.00018,2]
[400832760,1767840647424,-165.35,0.0001644,2]
[400832762,1767840647435,-11737.27865,0.000179,2]
[400832765,1767840647450,-1718.30309537,0.000179,2]
[400832767,1767840647460,-1080.27285275,0.00018,2]
[400832769,1767840647471,-27235.8,0.00018,2]
[400832771,1767840647482,-692.16060007,0.00018,2]
[400832774,1767840647499,-970.36210392,0.00018,2]
[400832776,1767840647515,-4081757.36259488,0.00018,2]
[400832778,1767840647526,-1310.00023,0.00018,2]
[400832781,1767840647544,-15941.23605073,0.00018,2]
[400832783,1767840647555,-958.1661177,0.00018,2]
[400832844,1767840648179,-1.7e-07,0.00018,2]
[400832871,1767840648449,-6587.776033,0.00018,2]
[400832874,1767840648469,-20858.02308234,0.00018,2]
[400832886,1767840648576,-338406.6514351,0.00018,2]
[400832888,1767840648592,-277.70153201,0.00018,2]
[400832890,1767840648604,-881.0,0.00018,2]
[400832895,1767840648755,-48626.4191349,0.00018,2]
[400832896,1767840648768,-513.24370335,0.00018,2]
[400832897,1767840648784,-500.0,0.00018,2]
[400832898,1767840648805,-444.81816065,0.00018,2]
[400832899,1767840648822,-5103.0,0.00018,2]
[400835708,1767840686516,1100.0,0.0001268,2]
[400835709,1767840691315,1100.0,0.00012046,2]
[400835710,1767840696067,1100.0,0.00011444,2]
[400835711,1767840701679,1100.0,0.00010872,2]
[400835712,1767840703437,-879.92608964,0.00013238,2]
[400835713,1767840704975,-293.7471676,0.00013238,2]
[400835714,1767840705620,1100.0,0.00010328,2]
[400835718,1767840706986,-406.2528324,0.00013238,2]
[400835723,1767840710402,1100.0,0.000101,2]
[400835725,1767840715239,1100.0,0.000101,2]
[400835726,1767840720007,1100.0,0.000101,2]
[400835727,1767840725437,1101.72360627,0.000101,2]
[400835729,1767840764328,206.3006,0.0003287,120]
[400835730,1767840772391,-217.17014359,0.00013072,2]
[400835732,1767840786227,-151.87511688,0.00013138,2]
[400835733,1767840786259,-303.08526023,0.00013183,2]
[400835734,1767840786456,-9188.37563951,0.00013228,2]
[400835735,1767840789884,-1099.34842861,0.00013138,2]
[400835736,1767840789954,-7801.31314278,0.00013228,2]
[400835737,1767840792226,-10000.01,0.00013228,2]
[400835800,1767840863147,-247.63682489,0.00013228,2]
[400835801,1767840864799,-206.40752693,0.00013228,2]
[400835802,1767840866344,-230.85244452,0.00013228,2]
[400835803,1767840869217,-401.53167658,0.00013228,2]
[400835804,1767840875412,-230.8525,0.00013138,2]
[400835805,1767840875459,-9538.305,0.00013228,2]
[400835806,1767840875647,-2613.89420948,0.00013228,2]
[400835807,1767840875670,-4772.22158104,0.00013228,2]
[400835825,1767840881464,-165.28238472,0.00013138,2]
[400835826,1767840881495,-150.0,0.00013236,2]